fUSD/lending_fUSD_20241207
["ID","MTS","AMOUNT","RATE_DAILY","PERIOD"]
[344533933,1733537451605,-500.0,0.0001068,2]
[344533934,1733537451614,-500.0,0.0001068,2]
[344533935,1733537451624,-500.0,0.0001068,2]
[344533936,1733537451634,-609.04,0.0001068,2]
[344533937,1733537451643,-819.45,0.0001068,2]
[344533938,1733537451652,-1046.78,0.0001068,2]
[344533939,1733537451662,-950.43,0.0001068,2]
[344533940,1733537451671,-500.0,0.0001068,2]
[344533941,1733537451680,-500.0,0.0001068,2]
[344533942,1733537451690,-804.93,0.0001068,2]
[344533943,1733537451700,-500.0,0.0001068,2]
[344533944,1733537451709,-500.0,0.0001068,2]
[344533945,1733537451719,-1117.46,0.0001068,2]
[344533946,1733537451728,-500.0,0.0001068,2]
[344533947,1733537451738,-721.67,0.0001068,2]
[344533948,1733537451746,-563.82,0.0001068,2]
[344533949,1733537451755,-500.0,0.0001068,2]
[344533950,1733537451765,-890.81,0.0001068,2]
[344533951,1733537451774,-500.0,0.0001068,2]
[344533952,1733537451783,-500.0,0.0001068,2]
[344533953,1733537451793,-500.0,0.0001068,2]
[344533954,1733537451803,-500.0,0.0001068,2]
[344533955,1733537451812,-500.0,0.0001068,2]
[344533956,1733537451824,-773.09,0.0001068,2]
[344533957,1733537451834,-611.78,0.0001068,2]
[344533958,1733537451843,-708.34,0.0001068,2]
[344533959,1733537451853,-500.0,0.0001068,2]
[344533960,1733537451862,-1172.09,0.0001068,2]
[344533961,1733537451872,-1122.04,0.0001068,2]
[344533962,1733537451881,-500.0,0.0001068,2]
[344533963,1733537451890,-536.64,0.0001068,2]
[344533964,1733537451900,-500.0,0.0001068,2]
[344533965,1733537451910,-1195.36,0.0001068,2]
[344533966,1733537451921,-1204.41,0.0001068,2]
[344533967,1733537451931,-500.0,0.0001068,2]
[344533968,1733537451941,-500.0,0.0001068,2]
[344533969,1733537451951,-500.0,0.0001068,2]
[344533970,1733537451960,-500.0,0.0001068,2]
[344533971,1733537451969,-1277.16,0.0001068,2]
[344533972,1733537451978,-723.36,0.0001068,2]
[344533973,1733537451988,-1141.67,0.0001068,2]
[344533974,1733537451997,-500.0,0.0001068,2]
[344533975,1733537452007,-497.4993844,0.0001068,2]
[344533976,1733537452017,-626.89,0.0001068,2]
[344533977,1733537452026,-500.0,0.0001068,2]
[344533978,1733537452035,-561.29,0.0001068,2]
[344533979,1733537452045,-500.0,0.0001068,2]
[344533980,1733537452054,-500.0,0.0001068,2]
[344533981,1733537452064,-952.18,0.0001068,2]
[344533982,1733537452076,-940.5,0.0001068,2]
[344533983,1733537452085,-500.0,0.0001068,2]
[344533984,1733537452094,-500.0,0.0001068,2]
[344533985,1733537452103,-500.0,0.0001068,2]
[344533986,1733537452113,-867.31,0.0001068,2]
[344533987,1733537452122,-841.91,0.0001068,2]
[344533988,1733537452131,-500.0,0.0001068,2]
[344533989,1733537452140,-500.0,0.0001068,2]
[344533990,1733537452149,-598.02,0.0001068,2]
[344533991,1733537452159,-500.0,0.0001068,2]
[344533992,1733537452168,-500.0,0.0001068,2]
[344533993,1733537452177,-500.0,0.0001068,2]
[344533994,1733537452186,-500.0,0.0001068,2]
[344533995,1733537452195,-292.13387139,0.0001068,2]
[344533996,1733537452205,-500.0,0.0001068,2]
[344533997,1733537452214,-519.16,0.0001068,2]
[344533998,1733537452224,-1077.49,0.0001068,2]
[344533999,1733537452233,-500.0,0.0001068,2]
[344534000,1733537452244,-500.0,0.0001068,2]
[344534001,1733537452254,-503.35,0.0001068,2]
[344534002,1733537452263,-500.0,0.0001068,2]
[344534003,1733537452272,-500.0,0.0001068,2]
[344534004,1733537452282,-963.09,0.0001068,2]
[344534005,1733537452292,-1121.84,0.0001068,2]
[344534006,1733537452301,-625.34,0.0001068,2]
[344534007,1733537452311,-500.0,0.0001068,2]
[344534008,1733537452323,-500.0,0.0001068,2]
[344534009,1733537452332,-705.73,0.0001068,2]
[344534010,1733537452343,-500.0,0.0001068,2]
[344534011,1733537452353,-500.0,0.0001068,2]
[344534012,1733537452362,-576.6,0.0001068,2]
[344534013,1733537452371,-500.0,0.0001068,2]
[344534014,1733537452380,-500.0,0.0001068,2]
[344534015,1733537452390,-500.0,0.0001068,2]
[344534016,1733537452399,-500.0,0.0001068,2]
[344534017,1733537452409,-500.0,0.0001068,2]
[344534018,1733537452419,-500.0,0.0001068,2]
[344534019,1733537452429,-500.0,0.0001068,2]
[344534020,1733537452438,-500.0,0.0001068,2]
[344534021,1733537452448,-515.19,0.0001068,2]
[344534022,1733537452457,-660.5,0.0001068,2]
[344534023,1733537452466,-500.0,0.0001068,2]
[344534024,1733537452475,-500.0,0.0001068,2]
[344534025,1733537452485,-500.0,0.0001068,2]
[344534026,1733537452494,-892.96,0.0001068,2]
[344534027,1733537452503,-1345.19,0.0001068,2]
[344534028,1733537452511,-567.63,0.0001068,2]
[344534029,1733537452521,-500.0,0.0001068,2]
[344534030,1733537452530,-712.16,0.0001068,2]
[344534031,1733537452540,-500.0,0.0001068,2]
[344534032,1733537452549,-500.0,0.0001068,2]
[344534033,1733537452559,-870.39,0.0001068,2]
[344534034,1733537452572,-500.0,0.0001068,2]
[344534035,1733537452582,-500.0,0.0001068,2]
[344534036,1733537452592,-500.0,0.0001068,2]
[344534037,1733537452602,-820.34,0.0001068,2]
[344534038,1733537452611,-588.07,0.0001068,2]
[344534039,1733537452621,-500.0,0.0001068,2]
[344534040,1733537452630,-500.0,0.0001068,2]
[344534041,1733537452639,-820.76,0.0001068,2]
[344534042,1733537452648,-854.13,0.0001068,2]
[344534043,1733537452658,-550.88,0.0001068,2]
[344534044,1733537452667,-500.0,0.0001068,2]
[344534045,1733537452676,-500.0,0.0001068,2]
[344534046,1733537452686,-500.0,0.0001068,2]
[344534047,1733537452695,-500.0,0.0001068,2]
[344534048,1733537452704,-500.0,0.0001068,2]
[344534049,1733537452713,-1181.78,0.0001068,2]
[344534050,1733537452728,-778.07,0.0001068,2]
[344534051,1733537452738,-500.0,0.0001068,2]
[344534052,1733537452747,-500.0,0.0001068,2]
[344534053,1733537452756,-582.48,0.0001068,2]
[344534054,1733537452766,-184.40663377,0.0001068,2]
[344534055,1733537452775,-2295.52,0.0001068,2]
[344534056,1733537452785,-799.05,0.0001068,2]
[344534057,1733537452795,-829.82,0.0001068,2]
[344534058,1733537452804,-794.15,0.0001068,2]
[344534059,1733537452814,-500.0,0.0001068,2]
[344534060,1733537452827,-500.0,0.0001068,2]
[344534061,1733537452838,-724.21,0.0001068,2]
[344534062,1733537452847,-500.0,0.0001068,2]
[344534063,1733537452857,-500.0,0.0001068,2]
[344534064,1733537452867,-664.86,0.0001068,2]
[344534065,1733537452877,-500.0,0.0001068,2]
[344534066,1733537452887,-989.21,0.0001068,2]
[344534067,1733537452896,-849.12,0.0001068,2]
[344534068,1733537452906,-500.0,0.0001068,2]
[344534069,1733537452915,-500.0,0.0001068,2]
[344534070,1733537452924,-500.0,0.0001068,2]
[344534071,1733537452933,-500.0,0.0001068,2]
[344534072,1733537452943,-500.0,0.0001068,2]
[344534073,1733537452953,-505.10084682,0.0001068,2]
[344534074,1733537452962,-500.0,0.0001068,2]
[344534075,1733537452972,-509.57,0.0001068,2]
[344534076,1733537452982,-713.01,0.0001068,2]
[344534077,1733537452991,-500.0,0.0001068,2]
[344534078,1733537453001,-500.0,0.0001068,2]
[344534079,1733537453010,-560.76,0.0001068,2]
[344534080,1733537453019,-679.55,0.0001068,2]
[344534081,1733537453029,-500.0,0.0001068,2]
[344534082,1733537453039,-500.0,0.0001068,2]
[344534083,1733537453048,-500.0,0.0001068,2]
[344534084,1733537453058,-500.0,0.0001068,2]
[344534085,1733537453068,-1346.56,0.0001068,2]
[344534086,1733537453079,-989.19,0.0001068,2]
[344534087,1733537453089,-1211.19,0.0001068,2]
[344534088,1733537453099,-500.0,0.0001068,2]
[344534089,1733537453109,-1833.64,0.0001068,2]
[344534090,1733537453119,-500.0,0.0001068,2]
[344534091,1733537453129,-500.0,0.0001068,2]
[344534092,1733537453139,-589.26,0.0001068,2]
[344534093,1733537453148,-500.0,0.0001068,2]
[344534094,1733537453157,-500.0,0.0001068,2]
[344534095,1733537453167,-614.86358329,0.0001068,2]
[344534096,1733537453177,-921.57,0.0001068,2]
[344534097,1733537453186,-500.0,0.0001068,2]
[344534098,1733537453195,-500.0,0.0001068,2]
[344534099,1733537453205,-1281.93,0.0001068,2]
[344534100,1733537453215,-500.0,0.0001068,2]
[344534101,1733537453224,-736.24,0.0001068,2]
[344534102,1733537453234,-500.0,0.0001068,2]
[344534103,1733537453245,-500.0,0.0001068,2]
[344534104,1733537453255,-500.0,0.0001068,2]
[344534105,1733537453375,-529.97,0.0001068,2]
[344534106,1733537453384,-500.0,0.0001068,2]
[344534107,1733537453394,-780.19,0.0001068,2]
[344534108,1733537453403,-500.0,0.0001068,2]
[344534109,1733537453412,-655.95,0.0001068,2]
[344534110,1733537453421,-911.08,0.0001068,2]
[344534111,1733537453431,-500.0,0.0001068,2]
[344534112,1733537453440,-500.0,0.0001068,2]
[344534113,1733537453451,-530.43,0.0001068,2]
[344534114,1733537453461,-873.22,0.0001068,2]
[344534115,1733537453470,-1140.22,0.0001068,2]
[344534116,1733537453479,-500.0,0.0001068,2]
[344534117,1733537453488,-627.08,0.0001068,2]
[344534118,1733537453498,-500.0,0.0001068,2]
[344534119,1733537453507,-643.92,0.0001068,2]
[344534120,1733537453517,-2433.75,0.0001068,2]
[344534121,1733537453526,-500.0,0.0001068,2]
[344534122,1733537453536,-500.0,0.0001068,2]
[344534123,1733537453546,-500.0,0.0001068,2]
[344534124,1733537453554,-249.20151155,0.0001068,2]
[344534125,1733537453564,-1430.18,0.0001068,2]
[344534126,1733537453575,-500.0,0.0001068,2]
[344534127,1733537453584,-782.99,0.0001068,2]
[344534128,1733537453594,-2284.01,0.0001068,2]
[344534129,1733537453603,-780.92,0.0001068,2]
[344534130,1733537453612,-500.0,0.0001068,2]
[344534131,1733537453621,-500.0,0.0001068,2]
[344534132,1733537453631,-693.87,0.0001068,2]
[344534133,1733537453640,-509.76,0.0001068,2]
[344534134,1733537453649,-831.52,0.0001068,2]
[344534135,1733537453658,-714.59,0.0001068,2]
[344534136,1733537453667,-500.0,0.0001068,2]
[344534137,1733537453676,-1380.02,0.0001068,2]
[344534138,1733537453685,-823.48,0.0001068,2]
[344534139,1733537453694,-500.0,0.0001068,2]
[344534140,1733537453703,-893.2,0.0001068,2]
[344534141,1733537453712,-1734.35,0.0001068,2]
[344534142,1733537453722,-814.35,0.0001068,2]
[344534143,1733537453731,-500.0,0.0001068,2]
[344534144,1733537453740,-3768.03,0.0001068,2]
[344534145,1733537453750,-582.08,0.0001068,2]
[344534146,1733537453759,-830.35,0.0001068,2]
[344534147,1733537453768,-975.77,0.0001068,2]
[344534148,1733537453778,-500.0,0.0001068,2]
[344534149,1733537453787,-500.0,0.0001068,2]
[344534150,1733537453796,-7359.0,0.0001068,2]
[344534151,1733537453805,-3459.63,0.0001068,2]
[344534152,1733537453814,-500.0,0.0001068,2]
[344534153,1733537453825,-769.9,0.0001068,2]
[344534154,1733537453834,-500.0,0.0001068,2]
[344534155,1733537453843,-500.0,0.0001068,2]
[344534156,1733537453852,-1346.14,0.0001068,2]
[344534157,1733537453861,-964.1,0.0001068,2]
[344534158,1733537453871,-500.0,0.0001068,2]
[344534159,1733537453880,-1200.0,0.0001068,2]
[344534160,1733537453889,-1060.98,0.0001068,2]
[344534161,1733537453898,-2194.59,0.0001068,2]
[344534162,1733537453907,-1828.43,0.0001068,2]
[344534163,1733537453915,-500.0,0.0001068,2]
[344534164,1733537453922,-500.0,0.0001068,2]
[344534165,1733537453931,-500.0,0.0001068,2]
[344534166,1733537453940,-535.97,0.0001068,2]
[344534167,1733537453949,-500.0,0.0001068,2]
[344534168,1733537453958,-10224.43,0.0001068,2]
[344534169,1733537453967,-564.88,0.0001068,2]
[344534170,1733537453976,-848.28,0.0001068,2]
[344534171,1733537453984,-2147.92,0.0001068,2]
[344534172,1733537453993,-2112.65,0.0001068,2]
[344534173,1733537454002,-500.0,0.0001068,2]
[344534174,1733537454011,-500.0,0.0001068,2]
[344534175,1733537454020,-967.65,0.0001068,2]
[344534176,1733537454029,-500.0,0.0001068,2]
[344534177,1733537454038,-2046.48,0.0001068,2]
[344534178,1733537454047,-674.48,0.0001068,2]
[344534179,1733537454056,-1371.16,0.0001068,2]
[344534180,1733537454066,-500.0,0.0001068,2]
[344534181,1733537454079,-1082.33,0.0001068,2]
[344534182,1733537454088,-500.0,0.0001068,2]
[344534183,1733537454098,-500.0,0.0001068,2]
[344534184,1733537454107,-9124.76,0.0001068,2]
[344534185,1733537454117,-837.66,0.0001068,2]
[344534186,1733537454127,-500.0,0.0001068,2]
[344534187,1733537454137,-567.79,0.0001068,2]
[344534188,1733537454146,-679.51,0.0001068,2]
[344534189,1733537454155,-500.0,0.0001068,2]
[344534190,1733537454163,-1047.21,0.0001068,2]
[344534191,1733537454172,-500.0,0.0001068,2]
[344534192,1733537454181,-621.96,0.0001068,2]
[344534193,1733537454190,-500.0,0.0001068,2]
[344534194,1733537454199,-500.0,0.0001068,2]
[344534195,1733537454209,-500.0,0.0001068,2]
[344534196,1733537454218,-1080.14,0.0001068,2]
[344534197,1733537454227,-500.0,0.0001068,2]
[344534198,1733537454236,-155.60729034,0.0001068,2]
[344534199,1733537454247,-628.02,0.0001068,2]
[344534200,1733537454256,-500.0,0.0001068,2]
[344534201,1733537454265,-500.0,0.0001068,2]
[344534202,1733537454275,-481.51559703,0.0001068,2]
[344534203,1733537454284,-1351.25,0.0001068,2]
[344534204,1733537454294,-5506.2,0.0001068,2]
[344534205,1733537454303,-1754.98,0.0001068,2]
[344534206,1733537454312,-3200.75,0.0001068,2]
[344534207,1733537454322,-536.93,0.0001068,2]
[344534208,1733537454331,-500.0,0.0001068,2]
[344534209,1733537454344,-500.0,0.0001068,2]
[344534210,1733537454353,-500.0,0.0001068,2]
[344534211,1733537454362,-1297.69,0.0001068,2]
[344534212,1733537454371,-500.0,0.0001068,2]
[344534213,1733537454380,-1217.46,0.0001068,2]
[344534214,1733537454390,-500.0,0.0001068,2]
[344534215,1733537454399,-500.0,0.0001068,2]
[344534216,1733537454408,-1520.75,0.0001068,2]
[344534217,1733537454417,-500.0,0.0001068,2]
[344534218,1733537454427,-5161.49,0.0001068,2]
[344534219,1733537454435,-500.0,0.0001068,2]
[344534220,1733537454444,-525.72,0.0001068,2]
[344534221,1733537454453,-500.0,0.0001068,2]
[344534222,1733537454463,-4752.83,0.0001068,2]
[344534223,1733537454471,-500.0,0.0001068,2]
[344534224,1733537454480,-579.7,0.0001068,2]
[344534225,1733537454489,-500.0,0.0001068,2]
[344534226,1733537454498,-1013.93,0.0001068,2]
[344534227,1733537454508,-500.0,0.0001068,2]
[344534228,1733537454517,-501.96705506,0.0001068,2]
[344534229,1733537454526,-500.0,0.0001068,2]
[344534230,1733537454535,-1478.17,0.0001068,2]
[344534231,1733537454546,-980.16,0.0001068,2]
[344534232,1733537454555,-2253.52,0.0001068,2]
[344534233,1733537454564,-529.93,0.0001068,2]
[344534234,1733537454575,-589.51,0.0001068,2]
[344534235,1733537454583,-846.32,0.0001068,2]
[344534236,1733537454592,-634.76,0.0001068,2]
[344534237,1733537454602,-1592.53,0.0001068,2]
[344534238,1733537454611,-500.0,0.0001068,2]
[344534239,1733537454620,-500.0,0.0001068,2]
[344534240,1733537454627,-806.38,0.0001068,2]
[344534241,1733537454636,-500.0,0.0001068,2]
[344534242,1733537454645,-987.46,0.0001068,2]
[344534243,1733537454654,-500.0,0.0001068,2]
[344534244,1733537454663,-678.97,0.0001068,2]
[344534245,1733537454672,-527.38,0.0001068,2]
[344534246,1733537454681,-500.0,0.0001068,2]
[344534247,1733537454690,-845.26,0.0001068,2]
[344534248,1733537454699,-618.23,0.0001068,2]
[344534249,1733537454708,-718.78,0.0001068,2]
[344534250,1733537454717,-500.0,0.0001068,2]
[344534251,1733537454726,-500.0,0.0001068,2]
[344534252,1733537454736,-500.0,0.0001068,2]
[344534253,1733537454745,-500.0,0.0001068,2]
[344534254,1733537454754,-500.0,0.0001068,2]
[344534255,1733537454763,-700.38,0.0001068,2]
[344534256,1733537454772,-2142.56,0.0001068,2]
[344534257,1733537454781,-500.0,0.0001068,2]
[344534258,1733537454791,-1006.68,0.0001068,2]
[344534259,1733537454800,-500.0,0.0001068,2]
[344534260,1733537454808,-500.0,0.0001068,2]
[344534261,1733537454817,-500.0,0.0001068,2]
[344534262,1733537454829,-601.72,0.0001068,2]
[344534263,1733537454839,-500.0,0.0001068,2]
[344534264,1733537454848,-810.93,0.0001068,2]
[344534265,1733537454857,-500.0,0.0001068,2]
[344534266,1733537454867,-500.0,0.0001068,2]
[344534267,1733537454876,-500.0,0.0001068,2]
[344534268,1733537454885,-500.0,0.0001068,2]
[344534269,1733537454893,-500.0,0.0001068,2]
[344534270,1733537454903,-2711.3,0.0001068,2]
[344534271,1733537454912,-550.60520305,0.0001068,2]
[344534272,1733537454921,-1456.41,0.0001068,2]
[344534273,1733537454931,-552.66,0.0001068,2]
[344534274,1733537454940,-1264.39,0.0001068,2]
[344534275,1733537454949,-742.7,0.0001068,2]
[344534276,1733537454958,-500.0,0.0001068,2]
[344534277,1733537454967,-500.0,0.0001068,2]
[344534278,1733537454976,-500.0,0.0001068,2]
[344534279,1733537454986,-500.0,0.0001068,2]
[344534280,1733537454995,-220.07328218,0.0001068,2]
[344534281,1733537455004,-500.0,0.0001068,2]
[344534282,1733537455013,-500.0,0.0001068,2]
[344534283,1733537455022,-1614.85,0.0001068,2]
[344534284,1733537455032,-500.0,0.0001068,2]
[344534285,1733537455041,-167.73499864,0.0001068,2]
[344534286,1733537455051,-500.0,0.0001068,2]
[344534287,1733537455059,-316.16160249,0.0001068,2]
[344534288,1733537455067,-500.0,0.0001068,2]
[344534289,1733537455078,-401.34833378,0.0001068,2]
[344534290,1733537455087,-500.0,0.00010681,2]
[344534291,1733537455096,-500.0,0.00010681,2]
[344534292,1733537455105,-935.29,0.00010681,2]
[344534293,1733537455114,-500.0,0.00010681,2]
[344534294,1733537455123,-507.32,0.00010681,2]
[344534295,1733537455132,-537.37,0.00010681,2]
[344534296,1733537455141,-500.0,0.00010681,2]
[344534297,1733537455150,-500.0,0.00010681,2]
[344534298,1733537455159,-500.0,0.00010681,2]
[344534299,1733537455168,-500.0,0.00010681,2]
[344534300,1733537455177,-500.0,0.00010681,2]
[344534301,1733537455187,-500.0,0.00010681,2]
[344534302,1733537455196,-500.0,0.00010681,2]
[344534303,1733537455205,-1039.25,0.00010681,2]
[344534304,1733537455214,-934.3,0.00010681,2]
[344534305,1733537455222,-334.08172853,0.00010681,2]
[344534306,1733537455231,-500.0,0.00010681,2]
[344534307,1733537455242,-706.31,0.00010681,2]
[344534308,1733537455250,-1575.02,0.00010681,2]
[344534309,1733537455259,-331.33311896,0.00010681,2]
[344534310,1733537455268,-974.48,0.00010681,2]
[344534311,1733537455278,-500.0,0.00010681,2]
[344534312,1733537455287,-500.0,0.00010681,2]
[344534313,1733537455295,-594.53,0.00010681,2]
[344534314,1733537455304,-500.0,0.00010681,2]
[344534315,1733537455313,-500.0,0.00010681,2]
[344534316,1733537455324,-500.0,0.00010681,2]
[344534317,1733537455335,-500.0,0.00010681,2]
[344534318,1733537455348,-500.0,0.00010681,2]
[344534319,1733537455357,-500.0,0.00010681,2]
[344534320,1733537455367,-500.0,0.00010681,2]
[344534321,1733537455376,-500.0,0.00010681,2]
[344534322,1733537455387,-500.0,0.00010681,2]
[344534323,1733537455396,-500.0,0.00010681,2]
[344534324,1733537455405,-500.0,0.00010681,2]
[344534325,1733537455415,-500.0,0.00010681,2]
[344534326,1733537455426,-500.0,0.00010681,2]
[344534327,1733537455436,-500.0,0.00010681,2]
[344534328,1733537455445,-648.49,0.00010681,2]
[344534329,1733537455454,-500.0,0.00010681,2]
[344534330,1733537455463,-500.0,0.00010681,2]
[344534331,1733537455473,-500.0,0.00010681,2]
[344534332,1733537455482,-500.0,0.00010681,2]
[344534333,1733537455491,-500.0,0.00010681,2]
[344534334,1733537455500,-500.0,0.00010681,2]
[344534335,1733537455508,-500.0,0.00010681,2]
[344534336,1733537455517,-672.69,0.00010681,2]
[344534337,1733537455527,-603.71696363,0.00010681,2]
[344534338,1733537455536,-500.0,0.00010681,2]
[344534339,1733537455546,-523.55,0.00010681,2]
[344534340,1733537455555,-500.0,0.00010681,2]
[344534341,1733537455565,-500.0,0.00010681,2]
[344534342,1733537455578,-734.69,0.00010681,2]
[344534343,1733537455587,-500.0,0.00010681,2]
[344534344,1733537455597,-500.0,0.00010681,2]
[344534345,1733537455606,-500.0,0.00010681,2]
[344534346,1733537455616,-500.0,0.00010681,2]
[344534347,1733537455626,-500.0,0.00010681,2]
[344534348,1733537455636,-500.0,0.00010681,2]
[344534349,1733537455645,-500.0,0.00010681,2]
[344534350,1733537455655,-574.62,0.00010681,2]
[344534351,1733537455665,-507.11,0.00010681,2]
[344534352,1733537455675,-561.87,0.00010681,2]
[344534353,1733537455685,-630.75,0.00010681,2]
[344534354,1733537455695,-500.0,0.00010681,2]
[344534355,1733537455704,-500.0,0.00010681,2]
[344534356,1733537455714,-958.27,0.00010681,2]
[344534357,1733537455723,-500.0,0.00010681,2]
[344534358,1733537455733,-185.83920057,0.00010681,2]
[344534359,1733537455743,-1099.36,0.00010681,2]
[344534360,1733537455753,-500.0,0.00010681,2]
[344534361,1733537455762,-500.0,0.00010681,2]
[344534362,1733537455772,-1285.82,0.00010681,2]
[344534363,1733537455782,-1464.66,0.00010681,2]
[344534364,1733537455791,-500.38381177,0.00010681,2]
[344534365,1733537455801,-500.0,0.00010681,2]
[344534366,1733537455811,-500.0,0.00010681,2]
[344534367,1733537455820,-500.0,0.00010681,2]
[344534368,1733537455833,-500.0,0.00010681,2]
[344534369,1733537455843,-500.0,0.00010681,2]
[344534370,1733537455852,-500.0,0.00010681,2]
[344534371,1733537455862,-1119.59,0.00010681,2]
[344534372,1733537455871,-500.0,0.00010681,2]
[344534373,1733537455881,-794.33,0.00010681,2]
[344534374,1733537455891,-500.0,0.00010681,2]
[344534375,1733537455901,-500.0,0.00010681,2]
[344534376,1733537455911,-500.0,0.00010681,2]
[344534377,1733537455920,-569.48,0.00010681,2]
[344534378,1733537455929,-500.0,0.00010681,2]
[344534379,1733537455938,-500.0,0.00010681,2]
[344534380,1733537455948,-500.0,0.00010681,2]
[344534381,1733537455957,-500.0,0.00010681,2]
[344534382,1733537455967,-500.0,0.00010681,2]
[344534383,1733537455977,-500.0,0.00010681,2]
[344534384,1733537455987,-500.0,0.00010681,2]
[344534385,1733537455996,-500.0,0.00010681,2]
[344534386,1733537456006,-500.0,0.00010681,2]
[344534387,1733537456015,-940.67,0.00010681,2]
[344534388,1733537456025,-500.0,0.00010681,2]
[344534389,1733537456034,-584.26,0.00010681,2]
[344534390,1733537456045,-1198.88,0.00010681,2]
[344534391,1733537456055,-607.45,0.00010681,2]
[344534392,1733537456065,-500.0,0.00010681,2]
[344534393,1733537456077,-500.0,0.00010681,2]
[344534394,1733537456090,-500.0,0.00010681,2]
[344534395,1733537456100,-500.0,0.00010681,2]
[344534396,1733537456110,-983.98,0.00010681,2]
[344534397,1733537456120,-500.0,0.00010681,2]
[344534398,1733537456130,-679.16,0.00010681,2]
[344534399,1733537456140,-1075.79,0.00010681,2]
[344534400,1733537456150,-500.0,0.00010681,2]
[344534401,1733537456160,-500.0,0.00010681,2]
[344534402,1733537456170,-500.0,0.00010681,2]
[344534403,1733537456180,-733.78,0.00010681,2]
[344534404,1733537456190,-592.95,0.00010681,2]
[344534405,1733537456200,-500.0,0.00010681,2]
[344534406,1733537456210,-500.0,0.00010681,2]
[344534407,1733537456219,-1043.19,0.00010681,2]
[344534408,1733537456230,-500.0,0.00010681,2]
[344534409,1733537456241,-588.58,0.00010681,2]
[344534410,1733537456251,-500.0,0.00010681,2]
[344534411,1733537456260,-581.87,0.00010681,2]
[344534412,1733537456269,-500.0,0.00010681,2]
[344534413,1733537456279,-500.0,0.00010681,2]
[344534414,1733537456289,-500.0,0.00010681,2]
[344534415,1733537456299,-546.03919072,0.00010681,2]
[344534416,1733537456309,-835.12,0.00010681,2]
[344534417,1733537456320,-530.69,0.00010681,2]
[344534418,1733537456334,-544.29,0.00010681,2]
[344534419,1733537456347,-500.0,0.00010681,2]
[344534420,1733537456358,-497.68,0.00010681,2]
[344534421,1733537456369,-500.99,0.00010681,2]
[344534422,1733537456380,-506.62,0.00010682,2]
[344534423,1733537456391,-500.0,0.00010682,2]
[344534424,1733537456402,-620.64861557,0.00010682,2]
[344534425,1733537456412,-500.0,0.00010682,2]
[344534426,1733537456424,-500.0,0.00010682,2]
[344534427,1733537456435,-500.0,0.00010682,2]
[344534428,1733537456445,-500.0,0.00010682,2]
[344534429,1733537456455,-500.0,0.00010682,2]
[344534430,1733537456465,-500.0,0.00010682,2]
[344534431,1733537456475,-500.0,0.00010682,2]
[344534432,1733537456485,-158.06615494,0.00010682,2]